fUSD/lending_fUSD_20260607
["ID","MTS","AMOUNT","RATE_DAILY","PERIOD"]
[424319652,1780768259000,-1125.0,0.00024013,2]
[424319616,1780768259000,-150.0,0.00023288,2]
[424319622,1780768259000,-621.78829552,0.00023799,2]
[424319610,1780768259000,-287.89218744,0.00023253,2]
[424319657,1780768259000,-931.0,0.0002434,2]
[424319619,1780768259000,-2000.0,0.00023707,7]
[424319656,1780768259000,-621.98013854,0.00024335,2]
[424319693,1780768259000,-213530.32866248,0.00025,2]
[424319686,1780768259000,-500.0,0.00024658,2]
[424319692,1780768259000,-2103.11928448,0.00025,2]
[424319683,1780768259000,-1000.0,0.00024658,2]
[424319691,1780768259000,-56288.56973458,0.00025,7]
[424319689,1780768259000,-270.0455652,0.00024897,2]
[424319690,1780768259000,-200.0,0.00024897,2]
[424319695,1780768259000,-478.0,0.00025,2]
[424319703,1780768259000,-715.32414592,0.00025,2]
[424319694,1780768259000,-400.0,0.00025,2]
[424319699,1780768259000,-4129.869333,0.00025,2]
[424319697,1780768259000,-692.50525579,0.00025,2]
[424319684,1780768259000,-150.0,0.00024658,2]
[424319696,1780768259000,-1109.47162442,0.00025,2]
[424319701,1780768259000,-603.20650266,0.00025,2]
[424319704,1780768259000,-812.81413638,0.00025,2]
[424319698,1780768259000,-2980.79991138,0.00025,2]
[424319702,1780768259000,-4084.69734692,0.00025,2]
[424319700,1780768259000,-960.0,0.00025,2]
[424319707,1780768259000,-1754.35310846,0.00025,2]
[424319708,1780768259000,-151.0,0.00025,2]
[424319711,1780768259000,-151.0,0.00025,2]
[424319706,1780768259000,-807.48872826,0.00025,2]
[424319710,1780768259000,-151.0,0.00025,2]
[424319709,1780768259000,-427.35551753,0.00025,2]
[424319653,1780768259000,-1408.35,0.000242,7]
[424319705,1780768259000,-4295.7312709,0.00025,2]
[424319688,1780768259000,-2968.11,0.00024773,7]
[424319712,1780768259000,-151.0,0.00025,2]
[424319685,1780768259000,-300.0,0.00024658,2]
[424319654,1780768259000,-10802.60937511,0.0002429,7]
[424319655,1780768259000,-4581.8,0.00024324,2]
[424319658,1780768259000,-260.4103811,0.00024349,2]
[424319660,1780768259000,-200.0,0.0002461,2]
[424319659,1780768259000,-200.0,0.00024349,2]
[424319664,1780768259000,-151.0,0.00024658,2]
[424319666,1780768259000,-151.0,0.00024658,2]
[424319687,1780768259000,-510.57684065,0.00024658,2]
[424319667,1780768259000,-617.346821,0.00024658,2]
[424319668,1780768259000,-617.346821,0.00024658,2]
[424319661,1780768259000,-187.01,0.00024658,2]
[424319669,1780768259000,-617.346821,0.00024658,2]
[424319665,1780768259000,-151.0,0.00024658,2]
[424319662,1780768259000,-1252.01,0.00024658,2]
[424319671,1780768259000,-617.346821,0.00024658,2]
[424319682,1780768259000,-199.145761,0.00024658,2]
[424319663,1780768259000,-151.0,0.00024658,2]
[424319680,1780768259000,-199.145761,0.00024658,2]
[424319679,1780768259000,-199.145761,0.00024658,2]
[424319678,1780768259000,-199.145761,0.00024658,2]
[424319670,1780768259000,-617.346821,0.00024658,2]
[424319676,1780768259000,-199.145761,0.00024658,2]
[424319677,1780768259000,-199.145761,0.00024658,2]
[424319674,1780768259000,-617.346821,0.00024658,2]
[424319672,1780768259000,-617.346821,0.00024658,2]
[424319675,1780768259000,-199.145761,0.00024658,2]
[424319681,1780768259000,-199.145761,0.00024658,2]
[424319673,1780768259000,-617.346821,0.00024658,2]
[424319747,1780768260000,-439.12,0.00025,2]
[424319753,1780768260000,-1125.0,0.00025214,2]
[424319748,1780768260000,-77612.0,0.00025,2]
[424319749,1780768260000,-14910.11,0.00025082,7]
[424319750,1780768260000,-305.89135153,0.00025166,2]
[424319744,1780768260000,-439.12,0.00025,2]
[424319746,1780768260000,-439.12,0.00025,2]
[424319751,1780768260000,-251.11897888,0.00025166,2]
[424319743,1780768260000,-439.12,0.00025,2]
[424319754,1780768260000,-200.0,0.00025383,2]
[424319745,1780768260000,-439.12,0.00025,2]
[424319752,1780768260000,-500.0,0.00025193,2]
[424319768,1780768260000,-150.0,0.00025737,2]
[424319755,1780768260000,-1759.45831957,0.00025397,2]
[424319759,1780768260000,-553.38,0.0002557,2]
[424319757,1780768260000,-280.03725111,0.00025445,2]
[424319766,1780768260000,-150.0,0.00025737,2]
[424319765,1780768260000,-150.0,0.00025737,2]
[424319761,1780768260000,-150.0,0.00025737,2]
[424319763,1780768260000,-150.0,0.00025737,2]
[424319756,1780768260000,-312.50773146,0.00025417,2]
[424319760,1780768260000,-150.0,0.00025737,2]
[424319764,1780768260000,-150.0,0.00025737,2]
[424319762,1780768260000,-150.0,0.00025737,2]
[424319741,1780768260000,-439.12,0.00025,2]
[424319758,1780768260000,-200.0,0.00025445,2]
[424319735,1780768260000,-342.548366,0.00025,2]
[424319722,1780768260000,-374.665694,0.00025,2]
[424319734,1780768260000,-342.548366,0.00025,2]
[424319778,1780768260000,-3642.0,0.00025809,2]
[424319715,1780768260000,-194.712125,0.00025,2]
[424319716,1780768260000,-194.712125,0.00025,2]
[424319717,1780768260000,-194.712125,0.00025,2]
[424319714,1780768260000,-194.712125,0.00025,2]
[424319713,1780768260000,-151.0,0.00025,2]
[424319718,1780768260000,-192.967881,0.00025,2]
[424319719,1780768260000,-192.967881,0.00025,2]
[424319720,1780768260000,-192.967881,0.00025,2]
[424319723,1780768260000,-374.665694,0.00025,2]
[424319729,1780768260000,-333.170844,0.00025,2]
[424319721,1780768260000,-192.967881,0.00025,2]
[424319738,1780768260000,-439.12,0.00025,2]
[424319726,1780768260000,-333.170844,0.00025,2]
[424319728,1780768260000,-333.170844,0.00025,2]
[424319730,1780768260000,-2532.201305,0.00025,2]
[424319727,1780768260000,-333.170844,0.00025,2]
[424319725,1780768260000,-374.665694,0.00025,2]
[424319732,1780768260000,-2532.201305,0.00025,2]
[424319731,1780768260000,-2532.201305,0.00025,2]
[424319733,1780768260000,-2532.201305,0.00025,2]
[424319737,1780768260000,-342.548366,0.00025,2]
[424319736,1780768260000,-342.548366,0.00025,2]
[424319739,1780768260000,-439.12,0.00025,2]
[424319742,1780768260000,-439.12,0.00025,2]
[424319740,1780768260000,-439.12,0.00025,2]
[424319724,1780768260000,-374.665694,0.00025,2]
[424319769,1780768260000,-150.0,0.00025737,2]
[424319770,1780768260000,-150.0,0.00025737,2]
[424319822,1780768260000,-250.0,0.00027,2]
[424319800,1780768260000,-1323.30755,0.00026384,2]
[424319803,1780768260000,-1323.30755,0.00026384,2]
[424319805,1780768260000,-1323.30755,0.00026384,2]
[424319808,1780768260000,-293.24305326,0.00026397,2]
[424319807,1780768260000,-1759.45831957,0.00026397,2]
[424319810,1780768260000,-417.54734895,0.00026475,2]
[424319809,1780768260000,-27958.64236527,0.000264,2]
[424319804,1780768260000,-1323.30755,0.00026384,2]
[424319811,1780768260000,-260.4103811,0.00026535,2]
[424319813,1780768260000,-804.17102365,0.00026538,2]
[424319823,1780768260000,-1053.083117,0.00027,2]
[424319814,1780768260000,-301.14337869,0.00026541,2]
[424319801,1780768260000,-1323.30755,0.00026384,2]
[424319817,1780768260000,-2322.0,0.00026752,3]
[424319819,1780768260000,-5530.0,0.000268,5]
[424319820,1780768260000,-151.0,0.00026924,4]
[424319818,1780768260000,-14910.11,0.00026776,7]
[424319816,1780768260000,-164.0,0.00026752,3]
[424319821,1780768260000,-200.0,0.00026928,2]
[424319812,1780768260000,-644.79446245,0.00026538,2]
[424319825,1780768260000,-400.0,0.00027,2]
[424319824,1780768260000,-530.0,0.00027,2]
[424319827,1780768260000,-173.0,0.00027,7]
[424319826,1780768260000,-763.029473,0.00027,2]
[424319828,1780768260000,-150.0,0.00027099,4]
[424319775,1780768260000,-1227.0,0.00025809,2]
[424319815,1780768260000,-242.80105347,0.00026541,2]
[424319793,1780768260000,-150.0,0.00026028,2]
[424319806,1780768260000,-1323.30755,0.00026384,2]
[424319792,1780768260000,-152.0,0.00026009,3]
[424319772,1780768260000,-1358.0,0.00025809,2]
[424319767,1780768260000,-150.0,0.00025737,2]
[424319771,1780768260000,-150.0,0.00025737,2]
[424319773,1780768260000,-3554.0,0.00025809,2]
[424319774,1780768260000,-382.0,0.00025809,2]
[424319776,1780768260000,-933.0,0.00025809,2]
[424319777,1780768260000,-6073.0,0.00025809,2]
[424319779,1780768260000,-500.0,0.00025834,14]
[424319802,1780768260000,-1323.30755,0.00026384,2]
[424319782,1780768260000,-151.0,0.00025924,4]
[424319784,1780768260000,-290.3986294,0.00025993,2]
[424319786,1780768260000,-36710.062,0.00026,2]
[424319780,1780768260000,-207.17,0.00025841,2]
[424319783,1780768260000,-610.98305302,0.0002599,2]
[424319781,1780768260000,-5530.0,0.000259,3]
[424319791,1780768260000,-550.0,0.00026,2]
[424319785,1780768260000,-200.0,0.00025993,2]
[424319789,1780768260000,-400.0,0.00026,2]
[424319787,1780768260000,-4599.10902732,0.00026,2]
[424319794,1780768260000,-300.0,0.00026028,2]
[424319795,1780768260000,-2000.0,0.00026035,7]
[424319796,1780768260000,-1397.0,0.00026078,2]
[424319790,1780768260000,-1408.35,0.00026,7]
[424319798,1780768260000,-4581.8,0.00026296,2]
[424319797,1780768260000,-200.0,0.00026156,2]
[424319799,1780768260000,-1323.30755,0.00026384,2]
[424319788,1780768260000,-220.12007771,0.00026,2]
[424319865,1780768261000,-1300.7,0.00027397,2]
[424319866,1780768261000,-1341.54346697,0.00027397,2]
[424319864,1780768261000,-8268.97659081,0.0002739,2]
[424319863,1780768261000,-4185.50640368,0.0002739,2]
[424319860,1780768261000,-500.0,0.0002737,2]
[424319869,1780768261000,-152.844604,0.00027397,2]
[424319861,1780768261000,-1000.0,0.0002737,2]
[424319871,1780768261000,-474.18696108,0.00027397,2]
[424319870,1780768261000,-151.0,0.00027397,2]
[424319859,1780768261000,-150.0,0.00027368,4]
[424319875,1780768261000,-1936.0,0.00027397,2]
[424319862,1780768261000,-150.0,0.00027372,4]
[424319872,1780768261000,-1936.0,0.00027397,2]
[424319889,1780768261000,-1936.0,0.00027397,2]
[424319874,1780768261000,-1936.0,0.00027397,2]
[424319873,1780768261000,-1936.0,0.00027397,2]
[424319877,1780768261000,-1936.0,0.00027397,2]
[424319883,1780768261000,-1936.0,0.00027397,2]
[424319878,1780768261000,-500.0,0.00027397,2]
[424319879,1780768261000,-1936.0,0.00027397,2]
[424319880,1780768261000,-500.0,0.00027397,2]
[424319882,1780768261000,-500.0,0.00027397,2]
[424319881,1780768261000,-1936.0,0.00027397,2]
[424319885,1780768261000,-1936.0,0.00027397,2]
[424319891,1780768261000,-1936.0,0.00027397,2]
[424319884,1780768261000,-500.0,0.00027397,2]
[424319867,1780768261000,-1172.97221305,0.00027397,7]
[424319876,1780768261000,-1936.0,0.00027397,2]
[424319868,1780768261000,-151.0,0.00027397,2]
[424319830,1780768261000,-150.0,0.00027099,4]
[424319851,1780768261000,-150.0,0.00027263,4]
[424319832,1780768261000,-150.0,0.00027099,4]
[424319833,1780768261000,-150.0,0.00027099,4]
[424319834,1780768261000,-150.0,0.00027099,4]
[424319831,1780768261000,-150.0,0.00027099,4]
[424319829,1780768261000,-150.0,0.00027099,4]
[424319835,1780768261000,-22496.0,0.00027123,2]
[424319837,1780768261000,-1968.0,0.00027123,2]
[424319845,1780768261000,-150.0,0.00027153,4]
[424319846,1780768261000,-150.0,0.00027189,4]
[424319839,1780768261000,-1788.0,0.00027123,2]
[424319836,1780768261000,-1597.0,0.00027123,2]
[424319840,1780768261000,-1406.0,0.00027123,2]
[424319841,1780768261000,-157.0,0.00027123,2]
[424319838,1780768261000,-1800.0,0.00027123,2]
[424319842,1780768261000,-156.0,0.00027123,2]
[424319843,1780768261000,-759.0,0.00027137,2]
[424319844,1780768261000,-150.0,0.00027144,4]
[424319849,1780768261000,-150.0,0.00027233,4]
[424319854,1780768261000,-275.41505733,0.000273,30]
[424319852,1780768261000,-150.0,0.00027278,4]
[424319848,1780768261000,-1065.5548339,0.00027233,2]
[424319858,1780768261000,-150.0,0.00027323,4]
[424319850,1780768261000,-150.0,0.00027257,4]
[424319847,1780768261000,-150.0,0.00027208,4]
[424319856,1780768261000,-150.0,0.00027314,4]
[424319857,1780768261000,-150.0,0.00027318,4]
[424319853,1780768261000,-152.0,0.00027283,4]
[424319855,1780768261000,-275.41505732,0.000273,30]
[424319887,1780768261000,-1936.0,0.00027397,2]
[424319949,1780768261000,-926.031354,0.00027397,2]
[424319886,1780768261000,-500.0,0.00027397,2]
[424319924,1780768261000,-151.0,0.00027397,2]
[424319922,1780768261000,-151.0,0.00027397,2]
[424319932,1780768261000,-433.109753,0.00027397,2]
[424319933,1780768261000,-433.109753,0.00027397,2]
[424319925,1780768261000,-151.0,0.00027397,2]
[424319931,1780768261000,-433.109753,0.00027397,2]
[424319928,1780768261000,-151.0,0.00027397,2]
[424319929,1780768261000,-151.0,0.00027397,2]
[424319927,1780768261000,-151.0,0.00027397,2]
[424319926,1780768261000,-151.0,0.00027397,2]
[424319935,1780768261000,-433.109753,0.00027397,2]
[424319934,1780768261000,-433.109753,0.00027397,2]
[424319945,1780768261000,-2129.55451,0.00027397,2]
[424319946,1780768261000,-2129.55451,0.00027397,2]
[424319937,1780768261000,-433.109753,0.00027397,2]
[424319936,1780768261000,-433.109753,0.00027397,2]
[424319938,1780768261000,-433.109753,0.00027397,2]
[424319939,1780768261000,-2129.55451,0.00027397,2]
[424319944,1780768261000,-2129.55451,0.00027397,2]
[424319942,1780768261000,-2129.55451,0.00027397,2]
[424319941,1780768261000,-2129.55451,0.00027397,2]
[424319940,1780768261000,-2129.55451,0.00027397,2]
[424319943,1780768261000,-2129.55451,0.00027397,2]
[424319948,1780768261000,-926.031354,0.00027397,2]
[424319890,1780768261000,-500.0,0.00027397,2]
[424319950,1780768261000,-926.031354,0.00027397,2]
[424319947,1780768261000,-926.031354,0.00027397,2]
[424319921,1780768261000,-300.0,0.00027397,2]
[424319923,1780768261000,-151.0,0.00027397,2]
[424319930,1780768261000,-528.8,0.00027397,2]
[424319915,1780768261000,-1936.0,0.00027397,2]
[424319893,1780768261000,-1936.0,0.00027397,2]
[424319911,1780768261000,-315.69261864,0.00027397,2]
[424319888,1780768261000,-500.0,0.00027397,2]
[424319892,1780768261000,-500.0,0.00027397,2]
[424319895,1780768261000,-500.0,0.00027397,2]
[424319897,1780768261000,-1936.0,0.00027397,2]
[424319896,1780768261000,-1936.0,0.00027397,2]
[424319898,1780768261000,-500.0,0.00027397,2]
[424319899,1780768261000,-500.0,0.00027397,2]
[424319903,1780768261000,-500.0,0.00027397,2]
[424319901,1780768261000,-1936.0,0.00027397,2]
[424319904,1780768261000,-500.0,0.00027397,2]
[424319900,1780768261000,-500.0,0.00027397,2]
[424319907,1780768261000,-500.0,0.00027397,2]
[424319894,1780768261000,-500.0,0.00027397,2]
[424319905,1780768261000,-1936.0,0.00027397,2]
[424319902,1780768261000,-500.0,0.00027397,2]
[424319916,1780768261000,-1954.11078681,0.00027397,2]
[424319912,1780768261000,-1936.0,0.00027397,2]
[424319908,1780768261000,-1936.0,0.00027397,2]
[424319910,1780768261000,-1936.0,0.00027397,2]
[424319914,1780768261000,-1936.0,0.00027397,2]
[424319913,1780768261000,-150.0,0.00027397,2]
[424319919,1780768261000,-1022.45,0.00027397,2]
[424319909,1780768261000,-500.0,0.00027397,2]
[424319918,1780768261000,-3084.94,0.00027397,2]
[424319917,1780768261000,-1500.0,0.00027397,2]
[424319906,1780768261000,-500.0,0.00027397,2]
[424319920,1780768261000,-1252.01,0.00027397,2]
[424319988,1780768262000,-204.77677487,0.000275,2]
[424319992,1780768262000,-150.0,0.00027529,7]
[424319994,1780768262000,-2968.11,0.00027545,7]
[424319985,1780768262000,-150.0,0.00027427,7]
[424319986,1780768262000,-150.0,0.00027458,7]
[424319979,1780768262000,-1196.77,0.000274,14]
[424319987,1780768262000,-150.0,0.00027482,7]
[424319984,1780768262000,-150.0,0.00027416,7]
[424319974,1780768262000,-38504.31,0.00027397,10]
[424319989,1780768262000,-3509.0,0.000275,7]
[424319983,1780768262000,-150.0,0.00027413,7]
[424319991,1780768262000,-150.0,0.00027503,7]
[424319998,1780768262000,-150.0,0.00027593,7]
[424319993,1780768262000,-150.0,0.00027537,7]
[424319996,1780768262000,-150.0,0.00027574,7]
[424319995,1780768262000,-150.0,0.00027548,7]
[424319997,1780768262000,-150.0,0.00027591,7]
[424320001,1780768262000,-151.0,0.00027598,7]
[424320003,1780768262000,-151.0,0.00027598,7]
[424320004,1780768262000,-150.0,0.00027638,7]
[424319999,1780768262000,-151.0,0.00027598,7]
[424320002,1780768262000,-151.0,0.00027598,7]
[424320000,1780768262000,-151.0,0.00027598,7]
[424320013,1780768262000,-150.0,0.00027701,7]
[424319973,1780768262000,-46205.17,0.00027397,10]
[424319990,1780768262000,-500.0,0.000275,7]
[424319977,1780768262000,-150.0,0.00027397,2]
[424320008,1780768262000,-759.0,0.00027671,2]
[424319975,1780768262000,-178.34503778,0.00027397,30]
[424319952,1780768262000,-926.031354,0.00027397,2]
[424319951,1780768262000,-926.031354,0.00027397,2]
[424319953,1780768262000,-926.031354,0.00027397,2]
[424319954,1780768262000,-926.031354,0.00027397,2]
[424319956,1780768262000,-1094.222631,0.00027397,2]
[424319955,1780768262000,-1000.0,0.00027397,20]
[424319958,1780768262000,-1094.222631,0.00027397,2]
[424319957,1780768262000,-1094.222631,0.00027397,2]
[424319959,1780768262000,-1094.222631,0.00027397,2]
[424319963,1780768262000,-1094.222631,0.00027397,2]
[424319962,1780768262000,-1094.222631,0.00027397,2]
[424319970,1780768262000,-4263.549049,0.00027397,2]
[424319981,1780768262000,-4658.84,0.000274,7]
[424319964,1780768262000,-4263.549049,0.00027397,2]
[424319965,1780768262000,-4263.549049,0.00027397,2]
[424319966,1780768262000,-55446.21,0.00027397,10]
[424319960,1780768262000,-1094.222631,0.00027397,2]
[424319967,1780768262000,-4263.549049,0.00027397,2]
[424319961,1780768262000,-1094.222631,0.00027397,2]
[424319969,1780768262000,-4263.549049,0.00027397,2]
[424319971,1780768262000,-4263.549049,0.00027397,2]
[424319972,1780768262000,-4263.549049,0.00027397,2]
[424319978,1780768262000,-300.0,0.00027398,2]
[424319980,1780768262000,-3405.06,0.000274,7]
[424319982,1780768262000,-999.36852742,0.000274,7]
[424319976,1780768262000,-1172.97221305,0.00027397,7]
[424319968,1780768262000,-4263.549049,0.00027397,2]
[424320017,1780768262000,-158.95111799,0.0002771,2]
[424320059,1780768262000,-162.3583128,0.00027753,2]
[424320015,1780768262000,-522.15314334,0.0002771,2]
[424320038,1780768262000,-157.44874314,0.0002771,2]
[424320042,1780768262000,-164.56137404,0.0002771,2]
[424320049,1780768262000,-150.0,0.00027733,7]
[424320051,1780768262000,-195.75570946,0.00027751,2]
[424320041,1780768262000,-157.5190701,0.0002771,2]
[424320050,1780768262000,-150.0,0.00027744,7]
[424320052,1780768262000,-177.30259782,0.00027753,2]
[424320043,1780768262000,-159.33173006,0.00027713,2]
[424320045,1780768262000,-194.55911984,0.00027713,2]
[424320044,1780768262000,-150.07277216,0.00027713,2]
[424320046,1780768262000,-155.99558506,0.00027713,2]
[424320047,1780768262000,-181.22726044,0.00027716,2]
[424320034,1780768262000,-201.52593459,0.0002771,2]
[424320056,1780768262000,-206.33137535,0.00027753,2]
[424320057,1780768262000,-160.41593411,0.00027753,2]
[424320055,1780768262000,-168.93066702,0.00027753,2]
[424320054,1780768262000,-154.50942457,0.00027753,2]
[424320063,1780768262000,-173.28170898,0.00027753,2]
[424320058,1780768262000,-163.20158485,0.00027753,2]
[424320062,1780768262000,-186.69907251,0.00027753,2]
[424320061,1780768262000,-161.56234999,0.00027753,2]
[424320060,1780768262000,-166.28327617,0.00027753,2]
[424320064,1780768262000,-176.74362869,0.00027753,2]
[424320066,1780768262000,-175.55613731,0.00027753,2]
[424320065,1780768262000,-181.36355345,0.00027753,2]
[424320010,1780768262000,-3405.06,0.000277,7]
[424320053,1780768262000,-172.36139423,0.00027753,2]
[424320037,1780768262000,-153.91655154,0.0002771,2]
[424320048,1780768262000,-150.0,0.00027728,7]
[424320040,1780768262000,-175.513359,0.0002771,2]
[424320014,1780768262000,-200.0,0.00027701,2]
[424320032,1780768262000,-174.08802706,0.0002771,2]
[424320005,1780768262000,-464.23816978,0.00027646,2]
[424320007,1780768262000,-310.68764905,0.00027659,2]
[424320012,1780768262000,-1408.35,0.000277,7]
[424320016,1780768262000,-457.47215029,0.0002771,2]
[424320011,1780768262000,-4658.84,0.000277,7]
[424320009,1780768262000,-150.0,0.00027683,7]
[424320019,1780768262000,-486.65937889,0.0002771,2]
[424320018,1780768262000,-182.84380817,0.0002771,2]
[424320022,1780768262000,-157.73037374,0.0002771,2]
[424320021,1780768262000,-151.73448889,0.0002771,2]
[424320020,1780768262000,-416.37046239,0.0002771,2]
[424320006,1780768262000,-150.0,0.00027646,7]
[424320031,1780768262000,-254.73279941,0.0002771,2]
[424320027,1780768262000,-168.62509796,0.0002771,2]
[424320026,1780768262000,-291.30751965,0.0002771,2]
[424320028,1780768262000,-173.82217937,0.0002771,2]
[424320024,1780768262000,-189.42908421,0.0002771,2]
[424320025,1780768262000,-206.56322582,0.0002771,2]
[424320030,1780768262000,-180.80321223,0.0002771,2]
[424320029,1780768262000,-154.90464809,0.0002771,2]
[424320033,1780768262000,-202.1050952,0.0002771,2]
[424320035,1780768262000,-153.63686778,0.0002771,2]
[424320023,1780768262000,-280.39699591,0.0002771,2]
[424320036,1780768262000,-163.26020423,0.0002771,2]
[424320039,1780768262000,-178.14369428,0.0002771,2]
[424320101,1780768263000,-160.0,0.00028,2]
[424320104,1780768263000,-3405.06,0.00028,7]
[424320108,1780768263000,-150.0,0.00028042,7]
[424320109,1780768263000,-150.0,0.00028049,7]
[424320098,1780768263000,-1352.79582961,0.00028,2]
[424320105,1780768263000,-4658.84,0.00028,7]
[424320100,1780768263000,-318.55449432,0.00028,30]
[424320102,1780768263000,-325.0,0.00028,2]
[424320103,1780768263000,-400.0,0.00028,2]
[424320097,1780768263000,-150.0,0.00027997,7]
[424320119,1780768263000,-1196.77,0.000282,14]
[424320099,1780768263000,-51757.05798714,0.00028,2]
[424320111,1780768263000,-150.0,0.00028084,7]
[424320133,1780768263000,-1500.0,0.00028364,15]
[424320120,1780768263000,-759.0,0.00028205,3]
[424320117,1780768263000,-150.0,0.00028177,7]
[424320113,1780768263000,-150.0,0.00028132,7]
[424320115,1780768263000,-150.0,0.00028139,7]
[424320112,1780768263000,-150.0,0.00028087,7]
[424320121,1780768263000,-150.0,0.00028208,7]
[424320118,1780768263000,-150.0,0.00028194,7]
[424320114,1780768263000,-513.37,0.00028137,2]
[424320110,1780768263000,-1300.7,0.00028082,2]
[424320125,1780768263000,-150.0,0.00028267,7]
[424320122,1780768263000,-150.0,0.00028222,7]
[424320136,1780768263000,-1500.0,0.00028364,15]
[424320107,1780768263000,-150.0,0.00028029,7]
[424320116,1780768263000,-150.0,0.00028174,7]
[424320095,1780768263000,-150.0,0.00027975,7]
[424320070,1780768263000,-150.0,0.00027773,7]
[424320096,1780768263000,-500.0,0.00027995,2]
[424320076,1780768263000,-196.42340608,0.00027855,2]
[424320077,1780768263000,-217.23527511,0.00027855,2]
[424320134,1780768263000,-1500.0,0.00028364,15]
[424320072,1780768263000,-150.0,0.0002781,7]
[424320071,1780768263000,-1196.77,0.000278,14]
[424320067,1780768263000,-164.64449703,0.00027753,2]
[424320068,1780768263000,-172.49160778,0.00027753,2]
[424320074,1780768263000,-150.0,0.00027818,7]
[424320069,1780768263000,-150.0,0.00027756,7]
[424320073,1780768263000,-1863.0,0.00027817,7]
[424320075,1780768263000,-150.0,0.00027851,7]
[424320078,1780768263000,-160.41090509,0.00027855,2]
[424320082,1780768263000,-187.97491005,0.00027855,2]
[424320106,1780768263000,-600.0,0.00028,2]
[424320079,1780768263000,-214.62657479,0.00027855,2]
[424320081,1780768263000,-174.74880933,0.00027855,2]
[424320085,1780768263000,-150.0,0.00027865,7]
[424320084,1780768263000,-150.0,0.00027863,7]
[424320083,1780768263000,-156.65894811,0.0002786,2]
[424320086,1780768263000,-150.0,0.00027891,7]
[424320087,1780768263000,-464.23816978,0.00027895,2]
[424320088,1780768263000,-150.0,0.00027908,7]
[424320089,1780768263000,-150.0,0.0002792,7]
[424320090,1780768263000,-151.0,0.00027924,4]
[424320091,1780768263000,-292.0,0.0002793,2]
[424320094,1780768263000,-150.0,0.00027959,7]
[424320093,1780768263000,-150.0,0.00027952,7]
[424320092,1780768263000,-293.03643175,0.00027935,2]
[424320080,1780768263000,-190.68298528,0.00027855,2]
[424320135,1780768263000,-1500.0,0.00028364,15]
[424320124,1780768263000,-4581.8,0.00028267,2]
[424320123,1780768263000,-150.0,0.00028248,7]
[424320158,1780768263000,-4658.84,0.000286,7]
[424320164,1780768263000,-4542.82,0.0002863,30]
[424320167,1780768263000,-2783.47,0.0002863,30]
[424320165,1780768263000,-4426.92,0.0002863,30]
[424320171,1780768263000,-464.23816978,0.00028643,2]
[424320173,1780768263000,-1206.96,0.00028661,7]
[424320172,1780768263000,-188.0,0.0002865,2]
[424320166,1780768263000,-1206.96,0.0002863,2]
[424320176,1780768263000,-150.0,0.00028683,7]
[424320168,1780768263000,-2856.72,0.0002863,30]
[424320169,1780768263000,-1206.28,0.0002863,2]
[424320170,1780768263000,-150.0,0.00028631,7]
[424320174,1780768263000,-1206.28,0.00028661,7]
[424320159,1780768263000,-3509.0,0.000286,7]
[424320177,1780768263000,-150.0,0.00028686,7]
[424320179,1780768263000,-1206.28,0.00028693,30]
[424320183,1780768263000,-1255.55,0.0002873,7]
[424320182,1780768263000,-1206.28,0.00028725,2]